fUSD/lending_fUSD_20260320
["ID","MTS","AMOUNT","RATE_DAILY","PERIOD"]
[408651229,1774048240396,-151.0,0.00014621,2]
[408651230,1774048240406,-151.0,0.00014621,2]
[408651231,1774048240416,-151.0,0.00014621,2]
[408651232,1774048240425,-151.0,0.00014621,2]
[408651233,1774048240435,-151.0,0.00014621,2]
[408651234,1774048240445,-151.0,0.00014621,2]
[408651235,1774048240454,-151.0,0.00014621,2]
[408651236,1774048240463,-151.0,0.00014621,2]
[408651237,1774048240473,-151.0,0.00014621,2]
[408651238,1774048240482,-151.0,0.00014621,2]
[408651239,1774048240492,-151.0,0.00014621,2]
[408651240,1774048240501,-151.0,0.00014621,2]
[408651241,1774048240511,-151.0,0.00014621,2]
[408651242,1774048240520,-300.0,0.00014629,2]
[408651243,1774048240529,-300.0,0.00014629,2]
[408651244,1774048240539,-300.0,0.00014629,2]
[408651245,1774048240548,-2500.0,0.00014629,2]
[408651246,1774048240557,-2500.0,0.00014629,2]
[408651247,1774048240566,-2500.0,0.00014629,2]
[408651248,1774048240575,-2500.0,0.00014629,2]
[408651249,1774048240584,-2500.0,0.00014629,2]
[408651250,1774048240593,-500.0,0.00014629,2]
[408651252,1774048240602,-500.0,0.00014629,2]
[408651253,1774048240611,-500.0,0.00014629,2]
[408651254,1774048240620,-500.0,0.00014629,2]
[408651255,1774048240630,-600.0,0.00014629,2]
[408651256,1774048240639,-600.0,0.00014629,2]
[408651257,1774048240649,-600.0,0.00014629,2]
[408651258,1774048240658,-600.0,0.00014629,2]
[408651259,1774048240668,-600.0,0.00014629,2]
[408651260,1774048240677,-500.0,0.00014629,2]
[408651261,1774048240686,-300.0,0.00014629,2]
[408651262,1774048240695,-300.0,0.00014629,2]
[408651263,1774048240703,-250.0,0.00014629,2]
[408651264,1774048240712,-151.0,0.00014634,2]
[408651265,1774048240722,-500.0,0.00014652,2]
[408651266,1774048240731,-1120.68561883,0.00014721,2]
[408651267,1774048240740,-1000.0,0.00014721,2]
[408651268,1774048240749,-1000.0,0.00014721,2]
[408651269,1774048240758,-1000.0,0.00014721,2]
[408651270,1774048240768,-624.88629479,0.00014721,2]
[408651272,1774048240777,-1000.0,0.00014721,2]
[408651274,1774048240786,-1000.0,0.00014721,2]
[408651275,1774048240795,-1000.0,0.00014721,2]
[408651276,1774048240804,-1000.0,0.00014721,2]
[408651277,1774048240814,-343.57327219,0.00014721,2]
[408651278,1774048240823,-1000.0,0.00014721,2]
[408651279,1774048240832,-1000.0,0.00014721,2]
[408651280,1774048240841,-1000.0,0.00014848,2]
[408651281,1774048240850,-172.00042038,0.000149,2]
[408651282,1774048240859,-172.00042037,0.000149,2]
[408651283,1774048240868,-1000.0,0.00014926,2]
[408651284,1774048240881,-547.78945051,0.00014926,2]
[408651285,1774048240891,-696.23259882,0.00014926,2]
[408651286,1774048240899,-500.0,0.00014926,2]
[408651287,1774048240907,-250.0,0.00015,2]
[408651288,1774048240916,-209.04,0.00015025,2]
[408651289,1774048240924,-2238.0,0.0001508,2]
[408651290,1774048240931,-11828.53075288,0.00015082,2]
[408651291,1774048240939,-20298.06712651,0.00015168,2]
[408651292,1774048240948,-500.0,0.000152,2]
[408651293,1774048240956,-255.0,0.00015215,2]
[408651294,1774048240965,-501.78785805,0.00015268,2]
[408651295,1774048240974,-1000.0,0.00015268,2]
[408651296,1774048240984,-1500.0,0.00015268,2]
[408651297,1774048240993,-1500.0,0.00015268,2]
[408651298,1774048241002,-1500.0,0.00015268,2]
[408651299,1774048241011,-1500.0,0.00015268,2]
[408651300,1774048241020,-1500.0,0.00015268,2]
[408651301,1774048241031,-1500.0,0.00015268,2]
[408651302,1774048241042,-1500.0,0.00015268,2]
[408651303,1774048241052,-14234.58,0.0001531,2]
[408651304,1774048241061,-29999.99,0.0001531,2]
[408651305,1774048241071,-500.0,0.00015368,2]
[408651306,1774048241080,-500.0,0.00015368,2]
[408651307,1774048241090,-500.0,0.00015368,2]
[408651308,1774048241100,-500.0,0.00015368,2]
[408651309,1774048241111,-276.8167788,0.00015368,2]
[408651310,1774048241121,-528.46,0.00015369,2]
[408651311,1774048241132,-581.91,0.00015369,2]
[408651312,1774048241142,-47963.26008941,0.0001537,2]
[408651313,1774048241151,-500.0,0.00015373,2]
[408651314,1774048241160,-161.53899681,0.00015373,2]
[408651315,1774048241169,-526.51357731,0.00015373,2]
[408651316,1774048241178,-500.0,0.00015373,2]
[408651317,1774048241187,-160.17523107,0.00015373,2]
[408651318,1774048241197,-500.0,0.00015373,2]
[408651319,1774048241206,-500.0,0.00015373,2]
[408651320,1774048241215,-164.65765141,0.00015373,2]
[408651321,1774048241225,-500.0,0.00015373,2]
[408651322,1774048241234,-517.87113645,0.00015373,2]
[408651323,1774048241243,-500.0,0.00015373,2]
[408651324,1774048241252,-160.07429413,0.00015373,2]
[408651325,1774048241261,-164.43293721,0.00015373,2]
[408651326,1774048241273,-500.0,0.00015373,2]
[408651327,1774048241283,-500.0,0.00015373,2]
[408651328,1774048241292,-500.0,0.00015373,2]
[408651329,1774048241301,-312.07045599,0.00015373,2]
[408651330,1774048241311,-500.0,0.00015373,2]
[408651331,1774048241321,-500.0,0.00015373,2]
[408651332,1774048241330,-500.0,0.00015373,2]
[408651333,1774048241340,-380.40842047,0.00015373,2]
[408651334,1774048241349,-210.53772401,0.00015373,2]
[408651335,1774048241359,-164.01890437,0.00015373,2]
[408651336,1774048241369,-166.47116035,0.00015373,2]
[408651337,1774048241378,-500.0,0.00015373,2]
[408651338,1774048241387,-168.34966884,0.00015373,2]
[408651339,1774048241397,-162.6980513,0.00015373,2]
[408651340,1774048241406,-163.43883407,0.00015373,2]
[408651341,1774048241415,-500.0,0.00015373,2]
[408651342,1774048241424,-162.74299007,0.00015373,2]
[408651343,1774048241434,-514.65599609,0.00015373,2]
[408651344,1774048241443,-489.70116295,0.00015373,2]
[408651345,1774048241453,-500.0,0.00015373,2]
[408651346,1774048241462,-500.0,0.00015373,2]
[408651347,1774048241471,-500.0,0.00015373,2]
[408651348,1774048241480,-500.0,0.00015373,2]
[408651349,1774048241489,-500.0,0.00015373,2]
[408651350,1774048241498,-500.0,0.00015373,2]
[408651351,1774048241507,-500.0,0.00015373,2]
[408651352,1774048241516,-500.0,0.00015373,2]
[408651353,1774048241526,-500.0,0.00015373,2]
[408651354,1774048241535,-500.0,0.00015373,2]
[408651355,1774048241544,-500.0,0.00015373,2]
[408651356,1774048241553,-500.0,0.00015373,2]
[408651357,1774048241562,-500.0,0.00015373,2]
[408651358,1774048241572,-500.0,0.00015373,2]
[408651359,1774048241581,-500.0,0.00015373,2]
[408651360,1774048241590,-500.0,0.00015373,2]
[408651361,1774048241599,-500.0,0.00015373,2]
[408651362,1774048241608,-1680.0,0.00015401,2]
[408651363,1774048241617,-1500.0,0.00015474,2]
[408651364,1774048241626,-500.0,0.00015474,2]
[408651365,1774048241636,-11227.93549682,0.00015554,2]
[408651366,1774048241645,-841.54237868,0.0001559,2]
[408651367,1774048241654,-1567.0,0.000156,2]
[408651368,1774048241663,-21182.58789342,0.0001569,2]
[408651369,1774048241672,-2691.3899,0.000157,2]
[408651370,1774048241681,-28917.91367984,0.00015716,2]
[408651371,1774048241690,-500.0,0.00015748,2]
[408651372,1774048241699,-2238.0,0.00015798,2]
[408651373,1774048241709,-235.97031693,0.000158,2]
[408651374,1774048241718,-306.23625939,0.000158,2]
[408651375,1774048241727,-707.91095065,0.000158,2]
[408651376,1774048241736,-5000.0,0.000158,2]
[408651377,1774048241745,-1041.34035958,0.000158,2]
[408651378,1774048241755,-500.0,0.00015816,2]
[408651379,1774048241765,-500.0,0.00015816,2]
[408651380,1774048241774,-2000.0,0.00015816,2]
[408651381,1774048241784,-1303.6717116,0.00015816,2]
[408651382,1774048241793,-2000.0,0.00015816,2]
[408651383,1774048241802,-2000.0,0.00015816,2]
[408651384,1774048241812,-209.04,0.0001586,2]
[408651385,1774048241821,-500.0,0.00015873,2]
[408651386,1774048241830,-500.0,0.00015873,2]
[408651387,1774048241839,-500.0,0.00015873,2]
[408651388,1774048241848,-226.90470424,0.00015873,2]
[408651389,1774048241858,-500.0,0.00015873,2]
[408651390,1774048241868,-163.24037555,0.00015873,2]
[408651391,1774048241880,-501.02591201,0.00015873,2]
[408651392,1774048241890,-500.0,0.00015873,2]
[408651393,1774048241899,-500.39228547,0.00015873,2]
[408651394,1774048241909,-500.0,0.00015873,2]
[408651395,1774048241918,-337.05453546,0.00015873,2]
[408651396,1774048241927,-500.0,0.00015873,2]
[408651397,1774048241936,-164.69416944,0.00015873,2]
[408651398,1774048241946,-500.0,0.00015873,2]
[408651399,1774048241957,-280.3921874,0.0001589,2]
[408651400,1774048241966,-154.78605134,0.00015898,2]
[408651401,1774048241975,-554.67420399,0.00015898,2]
[408651402,1774048241985,-528.46,0.00015898,2]
[408651403,1774048241994,-581.91,0.00015898,2]
[408651404,1774048242003,-500.0,0.00015899,2]
[408651405,1774048242011,-500.0,0.00015899,2]
[408651406,1774048242020,-500.0,0.00015899,2]
[408651407,1774048242029,-500.0,0.00015899,2]
[408651408,1774048242039,-500.0,0.00015899,2]
[408651409,1774048242048,-500.0,0.00015899,2]
[408651410,1774048242057,-553.23,0.00015899,2]
[408651411,1774048242067,-553.23,0.00015899,2]
[408651412,1774048242076,-553.23,0.00015899,2]
[408651413,1774048242086,-553.23,0.00015899,2]
[408651414,1774048242095,-553.23,0.00015899,2]
[408651415,1774048242104,-553.23,0.00015899,2]
[408651416,1774048242114,-500.0,0.00015899,2]
[408651417,1774048242123,-500.0,0.00015899,2]
[408651418,1774048242132,-500.0,0.00015899,2]
[408651419,1774048242142,-500.0,0.00015899,2]
[408651420,1774048242153,-500.0,0.00015899,2]
[408651421,1774048242162,-500.0,0.00015899,2]
[408651422,1774048242171,-500.0,0.00015899,2]
[408651423,1774048242181,-500.0,0.00015899,2]
[408651424,1774048242191,-500.0,0.00015899,2]
[408651425,1774048242200,-500.0,0.00015899,2]
[408651426,1774048242209,-500.0,0.00015899,2]
[408651427,1774048242218,-500.0,0.00015899,2]
[408651428,1774048242228,-606.93,0.00015899,2]
[408651429,1774048242238,-606.93,0.00015899,2]
[408651430,1774048242247,-606.93,0.00015899,2]
[408651431,1774048242257,-606.93,0.00015899,2]
[408651432,1774048242266,-606.93,0.00015899,2]
[408651433,1774048242275,-606.93,0.00015899,2]
[408651434,1774048242442,-500.0,0.00015899,2]
[408651435,1774048242455,-500.0,0.00015899,2]
[408651436,1774048242465,-500.0,0.00015899,2]
[408651437,1774048242475,-500.0,0.00015899,2]
[408651438,1774048242484,-500.0,0.00015899,2]
[408651439,1774048242494,-500.0,0.00015899,2]
[408651440,1774048242504,-500.0,0.00015899,2]
[408651441,1774048242514,-500.0,0.00015899,2]
[408651442,1774048242524,-500.0,0.00015899,2]
[408651443,1774048242533,-500.0,0.00015899,2]
[408651444,1774048242543,-500.0,0.00015899,2]
[408651445,1774048242552,-500.0,0.00015899,2]
[408651446,1774048242562,-500.0,0.00015899,2]
[408651447,1774048242571,-500.0,0.00015899,2]
[408651448,1774048242581,-500.0,0.00015899,2]
[408651449,1774048242590,-500.0,0.00015899,2]
[408651450,1774048242600,-500.0,0.00015899,2]
[408651451,1774048242610,-500.0,0.00015899,2]
[408651452,1774048242619,-500.0,0.00015899,2]
[408651453,1774048242629,-500.0,0.00015899,2]
[408651454,1774048242639,-500.0,0.00015899,2]
[408651455,1774048242649,-500.0,0.00015899,2]
[408651456,1774048242659,-500.0,0.00015899,2]
[408651457,1774048242669,-500.0,0.00015899,2]
[408651458,1774048242679,-500.0,0.00015899,2]
[408651459,1774048242688,-500.0,0.00015899,2]
[408651460,1774048242698,-500.0,0.00015899,2]
[408651461,1774048242707,-500.0,0.00015899,2]
[408651462,1774048242716,-504.81663731,0.00015899,2]
[408651463,1774048242726,-500.0,0.00015899,2]
[408651464,1774048242735,-500.0,0.00015899,2]
[408651465,1774048242745,-500.0,0.00015899,2]
[408651466,1774048242755,-500.0,0.00015899,2]
[408651467,1774048242764,-500.0,0.00015899,2]
[408651468,1774048242773,-526.89512762,0.00015899,2]
[408651469,1774048242783,-500.0,0.00015899,2]
[408651470,1774048242792,-500.0,0.00015899,2]
[408651471,1774048242802,-501.50298323,0.00015899,2]
[408651472,1774048242812,-500.0,0.00015899,2]
[408651473,1774048242821,-500.0,0.00015899,2]
[408651474,1774048242831,-568.64936411,0.00015899,2]
[408651475,1774048242841,-500.0,0.00015899,2]
[408651476,1774048242850,-500.0,0.00015899,2]
[408651477,1774048242860,-500.0,0.00015899,2]
[408651478,1774048242872,-500.0,0.00015899,2]
[408651479,1774048242883,-500.0,0.00015899,2]
[408651480,1774048242893,-500.0,0.00015899,2]
[408651481,1774048242903,-500.0,0.00015899,2]
[408651482,1774048242913,-500.0,0.00015899,2]
[408651483,1774048242922,-500.0,0.00015899,2]
[408651484,1774048242932,-500.0,0.00015899,2]
[408651485,1774048242941,-500.0,0.00015899,2]
[408651486,1774048242951,-500.0,0.00015899,2]
[408651487,1774048242961,-500.0,0.00015899,2]
[408651488,1774048242970,-500.0,0.00015899,2]
[408651489,1774048242979,-500.0,0.00015899,2]
[408651490,1774048242990,-500.0,0.00015899,2]
[408651491,1774048242999,-500.0,0.00015899,2]
[408651492,1774048243008,-500.0,0.00015899,2]
[408651493,1774048243018,-500.0,0.00015899,2]
[408651494,1774048243027,-500.0,0.00015899,2]
[408651495,1774048243036,-500.0,0.00015899,2]
[408651496,1774048243046,-500.0,0.00015899,2]
[408651497,1774048243055,-500.0,0.00015899,2]
[408651498,1774048243064,-500.0,0.00015899,2]
[408651499,1774048243074,-500.0,0.00015899,2]
[408651500,1774048243084,-500.0,0.00015899,2]
[408651501,1774048243093,-500.0,0.00015899,2]
[408651502,1774048243103,-500.0,0.00015899,2]
[408651503,1774048243112,-500.0,0.00015899,2]
[408651504,1774048243121,-500.0,0.00015899,2]
[408651506,1774048243130,-500.0,0.00015899,2]
[408651507,1774048243139,-500.0,0.00015899,2]
[408651509,1774048243149,-500.0,0.00015899,2]
[408651511,1774048243158,-500.0,0.00015899,2]
[408651513,1774048243167,-503.55073109,0.00015899,2]
[408651515,1774048243176,-528.46,0.00015899,2]
[408651516,1774048243185,-528.46,0.00015899,2]
[408651518,1774048243194,-528.46,0.00015899,2]
[408651520,1774048243203,-528.46,0.00015899,2]
[408651522,1774048243211,-528.46,0.00015899,2]
[408651524,1774048243220,-528.46,0.00015899,2]
[408651525,1774048243229,-581.91,0.00015899,2]
[408651527,1774048243238,-581.91,0.00015899,2]
[408651529,1774048243248,-581.91,0.00015899,2]
[408651531,1774048243257,-581.91,0.00015899,2]
[408651533,1774048243266,-581.91,0.00015899,2]
[408651535,1774048243275,-581.91,0.00015899,2]
[408651536,1774048243284,-1000.0,0.000159,2]
[408651538,1774048243293,-1500000.0,0.000159,2]
[408651540,1774048243302,-1587.9,0.000159,2]
[408651542,1774048243311,-169.19,0.000159,2]
[408651544,1774048243320,-160.0,0.000159,2]
[408651545,1774048243329,-170.29,0.000159,2]
[408651546,1774048243339,-500.0,0.00015921,2]
[408651548,1774048243349,-732.1008695,0.00015921,2]
[408651550,1774048243358,-500.0,0.00015921,2]
[408651551,1774048243368,-507.01441341,0.00015921,2]
[408651552,1774048243377,-1001.96871065,0.00015921,2]
[408651553,1774048243386,-505.17951552,0.00015921,2]
[408651554,1774048243395,-500.43849656,0.00015921,2]
[408651555,1774048243404,-788.43571139,0.00015921,2]
[408651557,1774048243413,-837.81409263,0.00015921,2]
[408651559,1774048243423,-1148.5922672,0.00015921,2]
[408651560,1774048243432,-500.47205684,0.00015921,2]
[408651562,1774048243442,-500.46558523,0.00015921,2]
[408651564,1774048243452,-500.0,0.00015921,2]
[408651566,1774048243462,-248.06,0.00015968,2]
[408651568,1774048243472,-500.0,0.00015999,2]
[408651570,1774048243482,-500.0,0.00015999,2]
[408651571,1774048243491,-500.0,0.00015999,2]
[408651572,1774048243500,-2000.0,0.00016,2]
[408651573,1774048243510,-2000.0,0.00016022,2]
[408651575,1774048243519,-2000.0,0.000161,2]
[408651577,1774048243529,-290.0,0.000162,2]
[408651578,1774048243540,-2000.0,0.000162,2]
[408651579,1774048243549,-2500.0,0.00016364,2]
[408651580,1774048243559,-1646.71316951,0.00016364,2]
[408651581,1774048243567,-2500.0,0.00016364,2]
[408651582,1774048243576,-433.0,0.00016413,2]
[408651583,1774048243585,-1000.0,0.00016421,2]
[408651584,1774048243595,-269.41912328,0.00016421,2]
[408651585,1774048243604,-500.2554714,0.00016421,2]
[408651586,1774048243613,-500.0,0.00016438,2]
[408651587,1774048243623,-500.0,0.00016438,2]
[408651588,1774048243632,-500.0,0.00016438,2]
[408651589,1774048243641,-500.0,0.00016438,2]
[408651590,1774048243652,-500.0,0.00016438,2]
[408651591,1774048243662,-500.0,0.00016438,2]
[408651592,1774048243671,-378.0,0.000165,7]
[408651593,1774048243681,-2238.0,0.00016516,2]
[408651594,1774048243690,-1538.0,0.0001657,2]
[408651595,1774048243699,-209.04,0.00016695,2]
[408651596,1774048243708,-166.84,0.00016712,2]
[408651597,1774048243718,-500.0,0.00016719,2]
[408651598,1774048243727,-500.0,0.00016719,2]
[408651599,1774048243736,-164.50003126,0.00016719,2]
[408651600,1774048243745,-500.0,0.00016719,2]
[408651601,1774048243755,-2399.0,0.0001672,2]
[408651602,1774048243765,-452.93052344,0.00016912,2]
[408651603,1774048243774,-2351.0,0.00016941,2]
[408651604,1774048243783,-546.25965825,0.00016968,2]
[408651605,1774048243793,-2238.0,0.00017235,2]
[408651606,1774048243802,-1567.0,0.0001736,2]
[408651607,1774048243811,-209.04,0.00017529,2]
[408651608,1774048243821,-736.0,0.00017711,2]
[408651609,1774048243841,-537.4,0.00018088,2]
[408651610,1774048243852,-612.38,0.00018362,2]
[408651611,1774048243861,-537.4,0.00018362,2]
[408651612,1774048243877,-209.04,0.00018364,2]
[408651613,1774048243886,-612.38,0.00018636,2]
[408651614,1774048243897,-537.4,0.00018636,2]
[408651615,1774048243906,-20298.06712644,0.00018894,2]
[408651616,1774048243917,-612.38,0.0001891,2]
[408651617,1774048243927,-537.4,0.0001891,2]
[408651618,1774048243937,-296.0,0.00019107,2]
[408651619,1774048243946,-355.429103,0.00019132,7]
[408651620,1774048243956,-612.39,0.00019184,2]
[408651621,1774048243966,-537.44,0.00019184,2]
[408651622,1774048243976,-209.04,0.00019199,2]
[408651623,1774048243985,-500.0,0.00019274,2]
[408651624,1774048243995,-553.23,0.00019274,2]
[408651625,1774048244005,-500.0,0.00019274,2]
[408651626,1774048244015,-500.0,0.00019274,2]
[408651627,1774048244024,-606.93,0.00019274,2]
[408651628,1774048244034,-500.0,0.00019274,2]
[408651629,1774048244043,-500.0,0.00019274,2]
[408651630,1774048244053,-296.03589012,0.00019274,2]
[408651631,1774048244063,-500.0,0.00019274,2]
[408651632,1774048244075,-500.0,0.00019274,2]
[408651633,1774048244085,-500.0,0.00019274,2]
[408651634,1774048244095,-160.0,0.000193,7]
[408651635,1774048244105,-504.0,0.00019364,7]
[408651636,1774048244114,-161.0,0.00019445,2]
[408651637,1774048244124,-1000.0,0.0002,7]
[408651638,1774048244135,-209.04,0.00020034,2]
[408651639,1774048244146,-150.99,0.00020145,2]
[408651640,1774048244155,-299.99,0.00020145,7]
[408651641,1774048244166,-235.97031687,0.00020267,2]
[408651642,1774048244175,-707.91095063,0.00020267,2]
[408651643,1774048244184,-161.0,0.00020405,2]
[408651644,1774048244194,-841.54237866,0.00020434,2]
[408651645,1774048244208,-979.16666667,0.00020831,2]
[408651646,1774048244217,-437.72,0.00020835,2]
[408651647,1774048244227,-209.04,0.00020868,2]
[408651648,1774048244236,-437.72,0.00021043,2]
[408651649,1774048244246,-306.23625939,0.00021067,2]
[408651650,1774048244255,-437.72,0.00021252,2]
[408651651,1774048244266,-1044.52790211,0.000213,2]
[408651652,1774048244275,-437.72,0.0002146,2]
[408651653,1774048244285,-353.66,0.00021595,2]
[408651654,1774048244295,-437.72,0.00021668,2]
[408651655,1774048244304,-395.0,0.00021679,10]
[408651656,1774048244314,-561.0,0.00021679,10]
[408651657,1774048244323,-209.04,0.00021703,2]
[408651658,1774048244333,-437.76511681,0.00021877,2]
[408651659,1774048244342,-209.04,0.00022538,2]
[408651660,1774048244352,-20298.06712644,0.0002262,2]
[408651661,1774048244362,-500.0,0.0002314,2]
[408651662,1774048244372,-500.0,0.0002314,2]
[408651663,1774048244381,-500.0,0.0002314,2]
[408651664,1774048244391,-160.0,0.000232,7]
[408651665,1774048244405,-344.42,0.00023207,2]
[408651666,1774048244415,-155.06,0.00024376,2]
[408651667,1774048244425,-13351.28654709,0.00024479,2]
[408651668,1774048244435,-1587.9,0.000246,7]
[408651669,1774048244445,-150.0,0.00024658,2]
[408651670,1774048244454,-235.97031687,0.00024734,2]
[408651671,1774048244464,-707.91095063,0.00024734,2]
[408651672,1774048244474,-500.0,0.00024873,2]
[408651673,1774048244484,-500.0,0.00024873,2]
[408651674,1774048244493,-500.0,0.00024873,2]
[408651675,1774048244503,-500.0,0.00024873,2]
[408651676,1774048244512,-500.0,0.00024873,2]
[408651677,1774048244522,-501.19769517,0.00024873,2]
[408651678,1774048244531,-500.55061153,0.00024873,2]
[408651679,1774048244541,-500.0,0.00024873,2]
[408651680,1774048244551,-500.0,0.00024873,2]
[408651681,1774048244560,-177.95509213,0.00024873,2]
[408651682,1774048244570,-303.31155753,0.00024873,2]
[408651683,1774048244580,-210.51770055,0.00024873,2]
[408651684,1774048244593,-500.0,0.00024873,2]
[408651685,1774048244602,-500.0,0.00024873,2]
[408651686,1774048244612,-500.26407273,0.00024873,2]
[408651687,1774048244621,-500.0,0.00024873,2]
[408651688,1774048244630,-500.0,0.00024899,2]
[408651689,1774048244640,-500.0,0.00024899,2]
[408651690,1774048244652,-500.0,0.00024899,2]
[408651691,1774048244661,-500.0,0.00024899,2]
[408651692,1774048244671,-548.22200997,0.00024899,2]
[408651693,1774048244681,-528.46,0.00024899,2]
[408651694,1774048244690,-528.46,0.00024899,2]
[408651695,1774048244700,-581.91,0.00024899,2]
[408651696,1774048244709,-581.91,0.00024899,2]
[408651697,1774048244718,-407437.47839,0.000249,2]
[408651698,1774048244728,-1044.5279021,0.00024981,2]
[408651699,1774048244737,-841.54237866,0.00025278,2]
[408651700,1774048244747,-248.06,0.00025374,2]
[408651701,1774048244756,-383.83679992,0.00025421,2]
[408651702,1774048244766,-504.0,0.00025427,12]
[408651703,1774048244775,-150.0,0.0002589,2]
[408651704,1774048244788,-1044.0,0.00026257,2]
[408651705,1774048244797,-2282.671,0.00026257,2]
[408651706,1774048244807,-620.0,0.00026257,2]
[408651707,1774048244816,-1354.554,0.00026257,2]
[408651708,1774048244825,-1261.0,0.00026257,2]
[408651709,1774048244834,-1215.0,0.00026257,2]
[408651710,1774048244843,-942.971,0.00026257,2]
[408651711,1774048244853,-2465.0,0.00026257,2]
[408651712,1774048244863,-415.0,0.00026257,2]
[408651713,1774048244874,-306.23625939,0.00026333,2]
[408651714,1774048244884,-20298.06712644,0.00026345,2]
[408651715,1774048244894,-150.0,0.00027185,2]
[408651716,1774048244905,-272.36,0.0002726,2]
[408651717,1774048244914,-817.13,0.0002726,2]
[408651718,1774048244924,-1379.35769222,0.00027297,2]
[408651719,1774048244934,-528.46,0.00027396,2]
[408651720,1774048244945,-581.91,0.00027396,2]
[408651721,1774048244955,-300.0,0.00027397,2]
[408651722,1774048244965,-1000.0,0.00027397,20]
[408651723,1774048244974,-164.34973078,0.00027397,2]
[408651724,1774048244987,-21016.17,0.00027397,10]
[408651725,1774048244997,-35987.27,0.00027397,10]
[408651726,1774048245006,-29989.39,0.00027397,10]
[408651727,1774048245016,-979.16666667,0.000274,10]
[408651728,1774048245025,-979.16666667,0.000282,10]
[408651729,1774048245034,-150.0,0.00028544,2]
[408651730,1774048245043,-1044.5279021,0.00028663,2]
[408651731,1774048245053,-275.84302893,0.00029041,120]
[408651732,1774048245062,-160.0,0.000291,7]
[408651733,1774048245072,-170.29,0.000291,7]
[408651734,1774048245083,-235.97031687,0.00029201,2]
[408651735,1774048245092,-707.91095063,0.00029201,2]
[408651736,1774048245102,-1344.0,0.00029257,2]
[408651737,1774048245111,-1259.0,0.00029257,2]
[408651738,1774048245120,-1215.0,0.00029257,2]
[408651739,1774048245130,-924.0,0.00029257,2]
[408651740,1774048245139,-2465.0,0.00029257,2]
[408651741,1774048245148,-415.0,0.00029257,2]
[408651742,1774048245157,-171.303049,0.00029677,7]
[408651743,1774048245166,-500.0,0.00029697,120]
[408651744,1774048245178,-500.0,0.00029697,10]
[408651745,1774048245187,-500.0,0.00029697,30]
[408651746,1774048245196,-500.0,0.00029697,120]
[408651747,1774048245205,-500.0,0.00029697,40]
[408651748,1774048245215,-607.88103677,0.00029697,120]
[408651749,1774048245224,-500.0,0.00029697,2]
[408651750,1774048245234,-150.0,0.00029971,2]
[408651751,1774048245243,-20298.06712644,0.00030071,2]
[408651752,1774048245252,-841.54237866,0.00030122,2]
[408651753,1774048245262,-1000.0,0.00030136,2]
[408651754,1774048245271,-500.0,0.00030136,120]
[408651755,1774048245280,-500.0,0.00030136,2]
[408651756,1774048245290,-210.27,0.00030207,14]
[408651757,1774048245299,-1000.0,0.0003041,2]
[408651758,1774048245308,-500.0,0.0003041,2]
[408651759,1774048245317,-1000.0,0.00030684,2]
[408651760,1774048245327,-500.0,0.00030684,2]